[Event "Open Mancomunitat de la Ribera Alta (Sumacàrcer)"]
[Site "Sumacàrcer, Spain"]
[Date "2018.11.18"]
[Round "7.3"]
[White "Garcia Vasquez, Jhoel"]
[Black "Granero Roca, Antonio"]
[Result "0-1"]
[TimeControl "5m+3s"]
[WhiteElo "2298"]
[BlackElo "2372"]

1. d4 {[%clk 00:05:04]} {[%emt 00:00:31]} Nf6 {[%clk 00:05:05]} 2. Nf3 {[%clk
00:05:03]} g6 {[%clk 00:05:07]} 3. c4 {[%clk 00:05:00]} {[%emt 00:00:09]} Bg7
{[%clk 00:05:08]} 4. Nc3 {[%clk 00:04:56]} O-O {[%clk 00:05:09]} 5. e4 {[%clk
00:04:58]} d6 {[%clk 00:05:11]} 6. Be2 {[%clk 00:04:57]} Bg4 {[%clk 00:05:12]}
{[%emt 00:00:20]} 7. O-O {[%clk 00:04:55]} Nfd7 {[%clk 00:05:13]} 8. h3 {[%clk
00:04:43]} {[%emt 00:00:03]} Bxf3 {[%clk 00:05:14]} 9. Bxf3 {[%clk 00:04:45]}
c5 {[%clk 00:05:15]} 10. d5 {[%clk 00:04:40]} {[%emt 00:00:05]} Na6 {[%clk
00:05:16]} {[%emt 00:00:40]} 11. Be2 {[%clk 00:04:35]} Nc7 {[%clk 00:05:16]} 12.
f4 {[%clk 00:04:21]} a6 {[%clk 00:05:17]} 13. a4 {[%clk 00:04:17]} {[%emt
00:00:03]} Rb8 {[%clk 00:05:18]} 14. Kh1 {[%clk 00:04:14]} {[%emt 00:00:07]} e6
{[%emt 00:00:38]} 15. dxe6 {[%clk 00:03:18]} {[%emt 00:00:54]} Nxe6 {[%emt
00:00:07]} 16. Qxd6 {[%clk 00:02:17]} {[%emt 00:00:27]} Nd4 {[%clk 00:05:19]}
{[%emt 00:00:26]} 17. e5 {[%clk 00:02:02]} {[%emt 00:00:11]} Re8 {[%clk
00:04:48]} {[%emt 00:00:16]} 18. a5 {[%emt 00:01:17]} Nf8 {[%clk 00:04:06]}
{[%emt 00:00:31]} 19. Qxd8 {[%emt 00:00:41]} Rbxd8 {[%clk 00:04:04]} 20. Bd1
{[%clk 00:00:36]} {[%emt 00:00:06]} Nf5 {[%clk 00:03:51]} {[%emt 00:00:06]} 21.
Kh2 {[%clk 00:00:29]} {[%emt 00:00:34]} f6 {[%clk 00:03:53]} 22. Ba4 {[%clk
00:00:31]} Re6 {[%clk 00:03:46]} 23. Ne4 {[%clk 00:00:24]} {[%emt 00:00:03]}
fxe5 {[%clk 00:03:36]} {[%emt 00:00:08]} 24. Nxc5 {[%clk 00:00:26]} {[%emt
00:00:10]} Re7 {[%clk 00:03:38]} 25. Bc2 {[%clk 00:00:15]} {[%emt 00:00:06]}
Rc7 {[%clk 00:03:21]} {[%emt 00:00:38]} 26. b4 {[%clk 00:00:18]} Nd4 {[%clk
00:03:08]} {[%emt 00:00:03]} 27. Bd1 {[%clk 00:00:17]} {[%emt 00:00:04]} Nfe6
{[%emt 00:00:12]} 28. Nxe6 {[%clk 00:00:15]} Nxe6 {[%clk 00:03:04]} {[%emt
00:00:10]} 29. c5 {[%clk 00:00:17]} exf4 {[%clk 00:02:58]} {[%emt 00:00:05]} 30.
Bb3 {[%clk 00:00:17]} {[%emt 00:00:37]} Bxa1 {[%clk 00:02:49]} 31. Bxf4 {[%emt
00:00:07]} Kg7 {[%clk 00:02:15]} {[%emt 00:00:05]} 32. Bxe6 {[%clk 00:00:17]}
{[%emt 00:00:03]} Re7 {[%clk 00:02:10]} {[%emt 00:00:06]} 33. Bg5 {[%clk
00:00:19]} {[%emt 00:00:07]} Be5+ {[%clk 00:02:11]} {[%emt 00:00:03]} 34. Kh1
{[%clk 00:00:21]} Rxe6 {[%clk 00:01:46]} {[%emt 00:00:22]} 35. Bxd8 {[%clk
00:00:23]} Bc3 {[%clk 00:01:48]} {[%emt 00:00:19]} 36. b5 {[%clk 00:00:25]}
axb5 {[%clk 00:01:47]} 37. Rb1 {[%clk 00:00:25]} b4 {[%clk 00:01:49]} 38. Bb6
{[%clk 00:00:24]} Kf7 {[%clk 00:01:42]} {[%emt 00:00:05]} 39. Kg1 {[%clk
00:00:19]} {[%emt 00:00:40]} Ke8 {[%clk 00:01:44]} 40. Rd1 {[%clk 00:00:15]} b3
{[%clk 00:01:42]} 41. Rb1 {[%clk 00:00:06]} b2 {[%clk 00:01:44]} 42. Kf2 {[%clk
00:00:07]} {[%emt 00:00:07]} Kd7 {[%clk 00:01:46]} 43. Rd1+ {[%clk 00:00:06]}
{[%emt 00:00:03]} Kc6 {[%clk 00:01:47]} 44. g4 {[%clk 00:00:07]} Re1 {[%clk
00:01:43]} {[%emt 00:00:06]} 0-1

[Event "Open Mancomunitat de la Ribera Alta (Sumacàrcer)"]
[Site "Sumacàrcer, Spain"]
[Date "2018.11.18"]
[Round "7.4"]
[White "Plaskett, H James"]
[Black "Montalban Galvez, Antoni"]
[Result "1-0"]
[TimeControl "5m+3s"]
[WhiteElo "2490"]
[BlackElo "2172"]

1. d4 {[%clk 00:05:05]} {[%emt 00:00:30]} Nf6 {[%clk 00:05:04]} 2. Nf3 {[%clk
00:05:06]} g6 {[%clk 00:05:06]} 3. Bf4 {[%clk 00:05:07]} {[%emt 00:00:08]} Bg7
{[%clk 00:05:07]} 4. e3 {[%clk 00:05:09]} O-O {[%clk 00:05:05]} 5. Be2 {[%clk
00:05:10]} d6 {[%clk 00:05:06]} 6. O-O {[%clk 00:05:10]} Nh5 {[%clk 00:04:56]}
{[%emt 00:00:04]} 7. Bg5 {[%clk 00:05:12]} h6 {[%clk 00:04:58]} 8. Bh4 {[%clk
00:05:14]} g5 {[%clk 00:04:57]} {[%emt 00:00:13]} 9. Nfd2 {[%clk 00:05:14]}
{[%emt 00:00:03]} gxh4 {[%clk 00:04:57]} 10. Bxh5 {[%clk 00:05:16]} h3 {[%clk
00:04:56]} 11. g3 {[%clk 00:05:13]} {[%emt 00:00:05]} c5 {[%clk 00:04:32]}
{[%emt 00:00:23]} 12. c3 {[%clk 00:05:15]} {[%emt 00:00:09]} Qc7 {[%clk
00:04:32]} 13. Na3 {[%clk 00:05:07]} {[%emt 00:00:12]} a6 {[%clk 00:04:32]} 14.
Bg4 {[%clk 00:04:35]} {[%emt 00:00:32]} b5 {[%clk 00:03:48]} {[%emt 00:00:48]}
15. Nc2 {[%clk 00:04:34]} {[%emt 00:00:11]} Nc6 {[%clk 00:03:33]} {[%emt
00:00:17]} 16. Rc1 {[%clk 00:04:34]} {[%emt 00:00:07]} Rd8 {[%clk 00:02:42]}
{[%emt 00:00:44]} 17. Re1 {[%clk 00:04:16]} {[%emt 00:00:23]} Bd7 {[%clk
00:02:34]} {[%emt 00:00:09]} 18. Qf3 {[%clk 00:03:21]} {[%emt 00:00:57]} Qc8
{[%clk 00:02:09]} {[%emt 00:00:44]} 19. Bxd7 {[%clk 00:03:10]} {[%emt
00:00:04]} Qxd7 {[%clk 00:02:09]} {[%emt 00:00:04]} 20. Rcd1 {[%clk 00:03:13]}
Rac8 {[%clk 00:01:47]} {[%emt 00:00:20]} 21. Ne4 {[%clk 00:03:00]} {[%emt
00:00:22]} cxd4 {[%clk 00:01:13]} {[%emt 00:00:30]} 22. exd4 {[%clk 00:03:00]}
{[%emt 00:00:31]} Rf8 {[%clk 00:00:41]} {[%emt 00:00:08]} 23. Qh5 {[%clk
00:02:53]} {[%emt 00:00:36]} Rc7 {[%clk 00:00:27]} {[%emt 00:00:03]} 24. f4
{[%clk 00:02:47]} {[%emt 00:00:03]} Qc8 {[%clk 00:00:16]} {[%emt 00:00:07]} 25.
Ne3 {[%clk 00:02:45]} {[%emt 00:00:17]} b4 {[%clk 00:00:17]} 26. Nf5 {[%clk
00:02:42]} e6 {[%clk 00:00:05]} {[%emt 00:00:18]} 27. Nxh6+ {[%clk 00:02:31]}
{[%emt 00:00:11]} Bxh6 {[%clk 00:00:05]} {[%emt 00:00:19]} 28. Qxh6 {[%clk
00:02:32]} f5 {[%clk 00:00:06]} 29. Ng5 {[%clk 00:02:31]} {Bandera} 1-0

[Event "Open Mancomunitat de la Ribera Alta (Sumacàrcer)"]
[Site "Sumacàrcer, Spain"]
[Date "2018.11.18"]
[Round "7.5"]
[White "Ibanez Aullana, Ramon"]
[Black "Galvan, Jesus"]
[Result "1-0"]
[TimeControl "5m+3s"]
[WhiteElo "2282"]
[BlackElo "2254"]

1. Nf3 {[%clk 00:05:05]} {[%emt 00:00:06]} d5 {[%clk 00:05:05]} 2. d4 {[%clk
00:05:05]} c6 {[%clk 00:05:07]} 3. Bf4 {[%clk 00:05:04]} {[%emt 00:00:05]} Qb6
{[%clk 00:05:05]} {[%emt 00:00:04]} 4. b3 {[%clk 00:04:57]} {[%emt 00:00:10]}
Bf5 {[%clk 00:05:06]} {[%emt 00:00:03]} 5. e3 {[%clk 00:04:58]} e6 {[%clk
00:05:08]} 6. Be2 {[%clk 00:04:50]} {[%emt 00:00:11]} Nf6 {[%clk 00:05:08]}
{[%emt 00:00:09]} 7. O-O {[%clk 00:04:51]} {[%emt 00:00:07]} h6 {[%clk
00:05:04]} 8. c4 {[%clk 00:04:51]} Be7 {[%clk 00:05:05]} {[%emt 00:00:03]} 9.
Nc3 {[%clk 00:04:48]} {[%emt 00:00:07]} O-O {[%clk 00:05:06]} {[%emt 00:00:03]}
10. Na4 {[%clk 00:04:42]} {[%emt 00:00:08]} Qd8 {[%clk 00:05:01]} {[%emt
00:00:04]} 11. Nc5 {[%clk 00:04:41]} {[%emt 00:00:20]} b6 {[%clk 00:04:25]}
{[%emt 00:00:28]} 12. Nd3 {[%clk 00:04:43]} Nbd7 {[%clk 00:04:23]} {[%emt
00:00:03]} 13. Nde5 {[%clk 00:04:36]} {[%emt 00:00:18]} Nxe5 {[%clk 00:03:28]}
{[%emt 00:00:49]} 14. Nxe5 {[%clk 00:04:36]} {[%emt 00:00:18]} Ba3 {[%clk
00:01:51]} {[%emt 00:01:28]} 15. Bd3 {[%clk 00:04:21]} {[%emt 00:00:14]} Bxd3
{[%clk 00:01:39]} {[%emt 00:00:15]} 16. Qxd3 {[%emt 00:00:12]} Rc8 17. Rab1
{[%clk 00:04:17]} {[%emt 00:00:07]} Qe7 {[%clk 00:01:43]} 18. f3 {[%clk
00:02:55]} {[%emt 00:01:17]} Rfd8 {[%clk 00:01:45]} {[%emt 00:00:08]} 19. Bg3
{[%clk 00:02:29]} {[%emt 00:00:33]} c5 {[%clk 00:01:45]} 20. Bf2 {[%clk
00:02:06]} {[%emt 00:00:18]} Nd7 {[%clk 00:01:16]} {[%emt 00:00:32]} 21. Nxd7
{[%clk 00:01:51]} {[%emt 00:00:18]} Rxd7 {[%clk 00:01:18]} {[%emt 00:00:40]} 22.
cxd5 {[%clk 00:01:48]} Rxd5 {[%clk 00:01:19]} 23. Qa6 {[%clk 00:01:50]} cxd4
{[%clk 00:00:54]} 24. Qxc8+ {[%clk 00:01:49]} {[%emt 00:00:04]} Rd8 {[%clk
00:00:57]} {[%emt 00:00:17]} 25. Qc4 {[%clk 00:01:44]} {[%emt 00:00:04]} d3
{[%clk 00:00:49]} 26. Rfd1 {[%clk 00:01:44]} {[%emt 00:00:04]} Qd6 {[%clk
00:00:52]} 27. b4 {[%clk 00:01:41]} {[%emt 00:00:04]} a5 {[%clk 00:00:54]} 28.
Rb3 {[%clk 00:01:39]} {[%emt 00:00:18]} d2 {[%clk 00:00:35]} {[%emt 00:00:08]}
29. Rxa3 {[%clk 00:01:36]} {[%emt 00:00:32]} b5 {[%clk 00:00:20]} {[%emt
00:00:07]} 30. Qc5 {[%clk 00:00:54]} {[%emt 00:00:29]} Qd7 {[%clk 00:00:08]}
{[%emt 00:00:16]} 31. bxa5 {[%clk 00:00:42]} {[%emt 00:00:17]} Rc8 {[%clk
00:00:10]} {[%emt 00:00:04]} 32. Rd3 {[%clk 00:00:40]} {[%emt 00:00:03]} Qxd3
{[%clk 00:00:06]} {[%emt 00:00:06]} 33. Qxc8+ {[%emt 00:00:07]} Kh7 34. a6
{[%clk 00:00:35]} {[%emt 00:00:04]} Qe2 {[%clk 00:00:11]} 35. Qc2+ {[%clk
00:00:36]} {[%emt 00:00:08]} 1-0

[Event "Open Mancomunitat de la Ribera Alta (Sumacàrcer)"]
[Site "Sumacàrcer, Spain"]
[Date "2018.11.18"]
[Round "7.6"]
[White "Campos Gambuti, Luis Maria"]
[Black "Roca Cruz, Rafael"]
[Result "1-0"]
[TimeControl "5m+3s"]
[WhiteElo "2432"]
[BlackElo "1941"]

1. d4 {[%clk 00:05:05]} {[%emt 00:00:03]} b5 {[%clk 00:05:05]} 2. e4 {[%clk
00:05:02]} {[%emt 00:00:04]} Bb7 {[%clk 00:05:07]} 3. Bd3 {[%clk 00:05:02]}
{[%emt 00:00:04]} Nf6 {[%clk 00:05:09]} {[%emt 00:00:12]} 4. Qe2 {[%clk
00:05:01]} {[%emt 00:00:03]} e6 {[%clk 00:05:12]} 5. Nd2 {[%clk 00:05:00]} a6
{[%clk 00:04:58]} {[%emt 00:00:09]} 6. Ngf3 {[%emt 00:00:05]} Be7 {[%emt
00:00:15]} 7. O-O {[%clk 00:04:50]} O-O {[%clk 00:05:01]} {[%emt 00:00:08]} 8.
a4 {[%clk 00:04:42]} {[%emt 00:00:03]} b4 {[%clk 00:05:01]} {[%emt 00:00:04]} 9.
e5 {[%clk 00:04:42]} {[%emt 00:00:04]} Ne8 {[%clk 00:05:03]} {[%emt 00:00:08]}
10. a5 {[%clk 00:04:34]} {[%emt 00:00:04]} c5 {[%clk 00:04:58]} {[%emt
00:00:06]} 11. Be4 {[%clk 00:04:15]} {[%emt 00:00:21]} d5 {[%clk 00:04:49]}
{[%emt 00:00:15]} 12. exd6 {[%clk 00:04:15]} {[%emt 00:00:08]} Nxd6 {[%clk
00:04:51]} 13. dxc5 {[%clk 00:04:01]} {[%emt 00:00:17]} Nxe4 {[%clk 00:04:53]}
14. Nxe4 {[%clk 00:04:00]} {[%emt 00:00:07]} Qd5 {[%clk 00:04:27]} {[%emt
00:01:03]} 15. Re1 {[%clk 00:03:32]} Nd7 {[%clk 00:04:18]} {[%emt 00:00:15]} 16.
Bg5 {[%clk 00:03:07]} {[%emt 00:00:14]} Bxg5 {[%clk 00:01:54]} {[%emt
00:02:26]} 17. Nexg5 {[%clk 00:03:01]} {[%emt 00:00:09]} Qxc5 {[%clk 00:01:34]}
{[%emt 00:00:36]} 18. Ne4 {[%clk 00:02:44]} {[%emt 00:00:06]} Qh5 {[%clk
00:01:08]} {[%emt 00:00:45]} 19. Ng3 {[%clk 00:02:20]} {[%emt 00:00:15]} Bxf3
{[%clk 00:01:04]} {[%emt 00:00:08]} 20. Nxh5 {[%clk 00:02:21]} {[%emt
00:00:04]} Bxe2 {[%clk 00:01:05]} 21. Rxe2 {[%clk 00:02:22]} {[%emt 00:00:12]}
Rac8 {[%clk 00:01:01]} {[%emt 00:00:04]} 22. Re4 {[%clk 00:02:18]} Rxc2 {[%clk
00:00:59]} {[%emt 00:00:08]} 23. Rxb4 {[%clk 00:02:19]} {[%emt 00:00:04]} Rfc8
{[%clk 00:00:59]} 24. g3 {[%clk 00:02:11]} {[%emt 00:00:05]} e5 {[%clk
00:00:37]} {[%emt 00:00:29]} 25. Rd1 {[%clk 00:01:52]} {[%emt 00:00:22]} Nc5
{[%clk 00:00:22]} {[%emt 00:00:16]} 26. Rd5 {[%clk 00:01:27]} {[%emt 00:00:29]}
g6 {[%clk 00:00:11]} {[%emt 00:00:12]} 27. Nf6+ {[%clk 00:01:25]} {[%emt
00:00:10]} Kg7 {[%clk 00:00:14]} 28. Nd7 {[%clk 00:01:01]} {[%emt 00:00:24]}
Nxd7 {[%clk 00:00:11]} {[%emt 00:00:05]} 29. Rxd7 {[%clk 00:01:03]} {[%emt
00:00:18]} R8c6 {[%clk 00:00:10]} {[%emt 00:00:03]} 30. Rdb7 {[%clk 00:00:32]}
{[%emt 00:00:28]} Rf6 {[%clk 00:00:11]} {[%emt 00:00:08]} 31. f4 {[%clk
00:00:34]} exf4 {[%clk 00:00:11]} 32. Rxf4 {[%clk 00:00:36]} Rxf4 33. gxf4 Rc6
{[%emt 00:00:04]} 34. Rb6 {[%emt 00:00:07]} Re6 {[%emt 00:00:08]} {Bandera} 1-0

[Event "Open Mancomunitat de la Ribera Alta (Sumacàrcer)"]
[Site "Sumacàrcer, Spain"]
[Date "2018.11.18"]
[Round "7.7"]
[White "Cortes Marti, Javier"]
[Black "Cruz Lledo, Pablo"]
[Result "0-1"]
[TimeControl "5m+3s"]
[WhiteElo "2027"]
[BlackElo "2335"]

1. d4 {[%clk 00:05:04]} {[%emt 00:00:09]} d5 {[%clk 00:05:01]} 2. c4 {[%clk
00:05:06]} e6 {[%clk 00:05:02]} {[%emt 00:00:05]} 3. Nc3 {[%clk 00:05:08]} Bb4
{[%clk 00:05:04]} 4. e3 {[%clk 00:05:10]} Nf6 {[%clk 00:05:00]} {[%emt
00:00:09]} 5. Nf3 {[%clk 00:05:11]} O-O {[%clk 00:05:01]} {[%emt 00:00:04]} 6.
Bd3 {[%clk 00:05:12]} {[%emt 00:00:05]} b6 {[%clk 00:05:02]} 7. cxd5 {[%clk
00:05:12]} exd5 {[%clk 00:05:03]} {[%emt 00:00:05]} 8. O-O {[%clk 00:05:13]}
Bg4 {[%clk 00:04:49]} {[%emt 00:00:17]} 9. a3 {[%clk 00:05:12]} {[%emt
00:00:05]} Bd6 {[%clk 00:04:46]} {[%emt 00:00:05]} 10. h3 {[%clk 00:05:12]}
{[%emt 00:00:09]} Bh5 {[%clk 00:04:48]} 11. b4 {[%clk 00:05:14]} a5 {[%clk
00:04:44]} {[%emt 00:00:04]} 12. bxa5 {[%clk 00:05:13]} {[%emt 00:00:04]} Rxa5
{[%emt 00:00:05]} 13. Bb2 {[%clk 00:05:09]} {[%emt 00:00:05]} Re8 {[%clk
00:04:42]} {[%emt 00:00:04]} 14. Nb5 {[%clk 00:05:05]} {[%emt 00:00:04]} Ne4
{[%clk 00:04:35]} {[%emt 00:00:10]} 15. Nxd6 {[%clk 00:04:59]} {[%emt
00:00:09]} Qxd6 {[%clk 00:04:36]} {[%emt 00:00:05]} 16. Be2 {[%clk 00:04:51]}
{[%emt 00:00:11]} Nd7 {[%clk 00:04:24]} {[%emt 00:00:12]} 17. Nd2 {[%clk
00:04:35]} {[%emt 00:00:19]} Bxe2 {[%clk 00:03:54]} {[%emt 00:00:37]} 18. Qxe2
{[%clk 00:04:36]} Ndf6 {[%clk 00:03:51]} {[%emt 00:00:05]} 19. Rfc1 {[%clk
00:04:29]} {[%emt 00:00:09]} Re6 {[%clk 00:03:13]} {[%emt 00:00:42]} 20. Nf3
{[%clk 00:04:30]} c5 {[%clk 00:03:04]} {[%emt 00:00:14]} 21. dxc5 {[%clk
00:04:04]} {[%emt 00:00:29]} bxc5 {[%clk 00:03:05]} {[%emt 00:00:06]} 22. a4
{[%clk 00:03:48]} {[%emt 00:00:14]} h6 {[%clk 00:03:05]} {[%emt 00:00:09]} 23.
Qe1 {[%clk 00:03:40]} {[%emt 00:00:06]} Ra6 {[%clk 00:03:05]} {[%emt 00:00:11]}
24. a5 {[%clk 00:03:41]} Re8 {[%clk 00:02:53]} {[%emt 00:00:09]} 25. Ra4 {[%clk
00:03:22]} {[%emt 00:00:22]} Rea8 {[%clk 00:02:50]} {[%emt 00:00:06]} 26. Bc3
{[%clk 00:03:14]} {[%emt 00:00:13]} Nxc3 {[%clk 00:02:21]} {[%emt 00:00:36]} 27.
Qxc3 {[%clk 00:03:15]} Ne4 {[%clk 00:02:23]} 28. Qa3 {[%clk 00:03:06]} {[%emt
00:00:13]} Qc7 {[%clk 00:02:03]} {[%emt 00:00:20]} 29. Ra1 {[%clk 00:03:06]}
{[%emt 00:00:07]} c4 {[%clk 00:02:04]} 30. Nd4 {[%clk 00:03:07]} {[%emt
00:00:05]} Nc5 {[%clk 00:01:54]} {[%emt 00:00:12]} 31. Nb5 {[%clk 00:02:14]}
{[%emt 00:00:51]} Qc6 {[%clk 00:01:56]} 32. Qb4 {[%clk 00:02:08]} {[%emt
00:00:11]} Nxa4 {[%clk 00:01:53]} {[%emt 00:00:05]} 33. Rxa4 {[%clk 00:02:09]}
Rb8 {[%emt 00:00:20]} 0-1

[Event "Open Mancomunitat de la Ribera Alta (Sumacàrcer)"]
[Site "Sumacàrcer, Spain"]
[Date "2018.11.18"]
[Round "8.1"]
[White "Granero Roca, Antonio"]
[Black "Toledano Llinares, Juan A."]
[Result "1-0"]
[TimeControl "5m+3s"]
[WhiteElo "2372"]
[BlackElo "2258"]

1. d4 {[%clk 00:05:04]} d6 {[%clk 00:05:05]} 2. c4 {[%clk 00:05:06]} e5 {[%clk
00:05:00]} 3. Nc3 {[%clk 00:05:07]} {[%emt 00:00:03]} exd4 {[%clk 00:04:58]} 4.
Qxd4 {[%clk 00:05:09]} Nc6 {[%clk 00:04:59]} 5. Qd2 {[%clk 00:05:10]} g6 {[%clk
00:04:57]} {[%emt 00:00:15]} 6. g3 {[%clk 00:05:11]} Bg7 {[%clk 00:04:44]}
{[%emt 00:00:09]} 7. Bg2 {[%clk 00:05:12]} {[%emt 00:00:12]} Nf6 {[%clk
00:04:41]} 8. Nh3 {[%clk 00:05:12]} O-O {[%clk 00:03:32]} {[%emt 00:01:24]} 9.
Nf4 {[%clk 00:05:11]} Re8 {[%clk 00:03:25]} 10. O-O {[%clk 00:05:11]} {[%emt
00:00:05]} Ne5 {[%clk 00:03:25]} {[%emt 00:00:04]} 11. b3 {[%clk 00:05:07]}
{[%emt 00:00:07]} c6 {[%clk 00:03:07]} {[%emt 00:00:20]} 12. Bb2 {[%clk
00:05:07]} {[%emt 00:00:07]} Qc7 {[%clk 00:02:59]} {[%emt 00:00:07]} 13. Rad1
{[%clk 00:05:03]} {[%emt 00:00:06]} Rd8 {[%clk 00:02:53]} {[%emt 00:00:09]} 14.
h3 {[%clk 00:04:43]} {[%emt 00:00:22]} Be6 {[%clk 00:02:54]} {[%emt 00:00:04]}
15. Nxe6 {[%clk 00:04:33]} {[%emt 00:00:09]} fxe6 {[%clk 00:02:56]} {[%emt
00:00:36]} 16. f4 {[%clk 00:04:33]} Nf7 {[%clk 00:02:52]} 17. e4 {[%clk
00:04:32]} e5 {[%clk 00:02:48]} 18. h4 {[%clk 00:04:09]} {[%emt 00:00:13]} Ng4
{[%clk 00:02:23]} {[%emt 00:00:30]} 19. Bh3 {[%clk 00:03:46]} {[%emt 00:00:24]}
Qb6+ {[%clk 00:02:04]} {[%emt 00:00:23]} 20. Kh1 {[%clk 00:03:19]} {[%emt
00:00:30]} Ne3 {[%clk 00:02:06]} {[%emt 00:00:34]} 21. Na4 {[%clk 00:03:05]}
{[%emt 00:00:14]} Nxf1 {[%clk 00:02:05]} 22. Rxf1 {[%clk 00:02:45]} {[%emt
00:00:04]} Qc7 {[%clk 00:02:07]} 23. f5 {[%clk 00:02:38]} Bh6 {[%clk 00:01:46]}
{[%emt 00:00:30]} 24. Qe2 {[%clk 00:02:39]} Kg7 {[%clk 00:01:39]} {[%emt
00:00:16]} 25. Qg4 {[%clk 00:02:14]} {[%emt 00:00:21]} Rf8 {[%clk 00:01:39]}
{[%emt 00:00:35]} 26. c5 {[%clk 00:01:58]} g5 {[%clk 00:00:57]} {[%emt
00:00:33]} 27. cxd6 {[%clk 00:01:51]} {[%emt 00:00:34]} Qxd6 {[%clk 00:00:59]}
28. Rd1 {[%clk 00:01:45]} Qe7 {[%clk 00:00:40]} {[%emt 00:00:38]} 29. Rd7
{[%clk 00:01:42]} Qf6 {[%clk 00:00:42]} 30. Nc5 {[%clk 00:01:36]} {[%emt
00:00:05]} Kh8 {[%clk 00:00:39]} 31. Ne6 {[%clk 00:01:31]} Rfd8 {[%clk
00:00:31]} {[%emt 00:00:09]} 32. Rxf7 {[%clk 00:01:03]} {[%emt 00:00:29]} Qxf7
{[%clk 00:00:31]} {[%emt 00:00:22]} 33. Bxe5+ {[%clk 00:01:05]} {[%emt
00:00:04]} Kg8 {[%clk 00:00:32]} 34. hxg5 {[%clk 00:01:02]} Bf8 {[%clk
00:00:26]} 35. g6 {[%clk 00:00:45]} {[%emt 00:00:13]} hxg6 {[%clk 00:00:27]}
{[%emt 00:00:33]} 36. fxg6 Qd7 {[%clk 00:00:19]} {[%emt 00:00:03]} 37. Qf5
{[%clk 00:00:25]} {[%emt 00:00:05]} Qd1+ {[%clk 00:00:14]} {[%emt 00:00:06]} 38.
Kh2 {[%clk 00:00:27]} {[%emt 00:00:12]} {Bandera} 1-0

[Event "Open Mancomunitat de la Ribera Alta (Sumacàrcer)"]
[Site "Sumacàrcer, Spain"]
[Date "2018.11.18"]
[Round "8.2"]
[White "Serarols Mabras, Bernat"]
[Black "Torres Sanchez, Jose"]
[Result "1-0"]
[TimeControl "5m+3s"]
[WhiteElo "2191"]
[BlackElo "2183"]

1. d4 {[%clk 00:05:05]} d6 {[%clk 00:05:02]} {[%emt 00:00:31]} 2. Nf3 {[%clk
00:05:05]} Nf6 {[%clk 00:05:01]} {[%emt 00:00:03]} 3. c4 {[%clk 00:05:06]} g6
{[%clk 00:05:01]} 4. Nc3 {[%clk 00:05:07]} Bf5 {[%clk 00:05:00]} 5. Nh4 {[%clk
00:04:59]} {[%emt 00:00:07]} Bd7 {[%clk 00:04:59]} {[%emt 00:00:04]} 6. g3
{[%clk 00:04:53]} {[%emt 00:00:04]} Bg7 {[%clk 00:05:00]} {[%emt 00:00:03]} 7.
Bg2 {[%clk 00:04:53]} {[%emt 00:00:04]} Nc6 {[%clk 00:05:01]} {[%emt 00:00:06]}
8. O-O {[%clk 00:04:49]} {[%emt 00:00:04]} O-O {[%clk 00:05:01]} {[%emt
00:00:03]} 9. Nf3 {[%clk 00:04:32]} {[%emt 00:00:15]} e5 {[%clk 00:04:59]}
{[%emt 00:00:13]} 10. dxe5 {[%clk 00:04:29]} dxe5 {[%clk 00:04:59]} {[%emt
00:00:12]} 11. Bg5 {[%clk 00:04:23]} {[%emt 00:00:03]} h6 {[%clk 00:04:58]}
{[%emt 00:00:03]} 12. Bxf6 {[%clk 00:04:24]} Bxf6 {[%clk 00:04:59]} {[%emt
00:00:03]} 13. Nd2 {[%clk 00:04:17]} {[%emt 00:00:09]} Bg7 {[%clk 00:05:00]}
{[%emt 00:00:07]} 14. Nde4 {[%clk 00:04:09]} {[%emt 00:00:06]} b6 {[%clk
00:04:47]} {[%emt 00:00:17]} 15. Nd2 {[%clk 00:03:49]} {[%emt 00:00:24]} Rc8
{[%clk 00:04:29]} {[%emt 00:00:17]} 16. e3 {[%clk 00:03:29]} {[%emt 00:00:49]}
f5 {[%clk 00:04:10]} {[%emt 00:00:04]} 17. Bd5+ {[%clk 00:03:30]} {[%emt
00:00:18]} Kh7 {[%clk 00:04:12]} 18. Bf3 {[%clk 00:02:44]} {[%emt 00:00:27]} e4
{[%clk 00:04:10]} {[%emt 00:00:34]} 19. Be2 {[%clk 00:02:46]} Ne5 {[%clk
00:04:09]} 20. Qc2 {[%clk 00:02:42]} {[%emt 00:00:04]} h5 {[%clk 00:03:40]}
{[%emt 00:00:13]} 21. Rad1 {[%clk 00:02:41]} {[%emt 00:00:04]} c6 {[%clk
00:03:31]} {[%emt 00:00:12]} 22. Kg2 {[%clk 00:02:25]} {[%emt 00:00:17]} Qe7
{[%clk 00:03:31]} {[%emt 00:00:08]} 23. a3 {[%clk 00:02:17]} {[%emt 00:00:06]}
Be6 {[%clk 00:03:26]} {[%emt 00:00:10]} 24. b4 {[%clk 00:01:45]} {[%emt
00:00:33]} Rcd8 {[%clk 00:03:26]} {[%emt 00:00:19]} 25. Na4 {[%clk 00:01:11]}
{[%emt 00:00:25]} Rd7 {[%clk 00:03:03]} {[%emt 00:00:20]} 26. Nb3 {[%clk
00:01:09]} {[%emt 00:00:27]} Rfd8 {[%clk 00:01:58]} {[%emt 00:00:50]} 27. Rxd7
{[%clk 00:01:11]} Rxd7 {[%clk 00:01:56]} {[%emt 00:00:05]} 28. Nd4 {[%clk
00:01:07]} {[%emt 00:00:10]} Bf7 {[%clk 00:01:44]} {[%emt 00:00:09]} 29. c5
{[%clk 00:00:58]} {[%emt 00:00:31]} b5 {[%clk 00:01:23]} {[%emt 00:00:15]} 30.
Nc3 {[%clk 00:00:59]} Nd3 {[%clk 00:00:48]} {[%emt 00:00:29]} 31. Nxc6 {[%clk
00:00:52]} {[%emt 00:00:13]} Qe6 {[%clk 00:00:47]} {[%emt 00:00:05]} 32. Nd4
{[%clk 00:00:48]} {[%emt 00:00:08]} Bxd4 {[%clk 00:00:48]} {[%emt 00:00:04]} 33.
exd4 {[%clk 00:00:50]} Rxd4 {[%clk 00:00:48]} {[%emt 00:00:08]} 34. Nxb5 {[%clk
00:00:52]} Rc4 {[%clk 00:00:46]} {[%emt 00:00:04]} 35. Qb3 {[%clk 00:00:45]}
{[%emt 00:00:05]} Qd7 {[%clk 00:00:38]} {[%emt 00:00:34]} 36. Nd6 {[%clk
00:00:42]} {[%emt 00:00:03]} Nc1 {[%clk 00:00:31]} 37. Rxc1 {[%clk 00:00:42]}
Rxc1 {[%clk 00:00:32]} 38. Qxf7+ {[%clk 00:00:44]} {[%emt 00:00:04]} Qxf7
{[%clk 00:00:33]} 39. Nxf7 {[%clk 00:00:45]} 1-0